bitfinex/quotes_BTCUSD_20251029
["timestamp","ask_amount","ask_price","bid_price","bid_amount"]
[1761746624558,3.78403611,112770.0,112760.0,0.00329942]
[1761746624803,3.81530027,112770.0,112760.0,0.00329942]
[1761746625000,3.10271245,112770.0,112760.0,0.00329942]
[1761746625224,3.76849427,112770.0,112760.0,0.00329942]
[1761746626330,3.79194884,112770.0,112760.0,0.00329942]
[1761746626539,3.76849427,112770.0,112760.0,0.00329942]
[1761746626764,3.7919494,112770.0,112760.0,0.00329942]
[1761746626973,3.74440393,112770.0,112760.0,0.00329942]
[1761746627640,3.03181611,112770.0,112760.0,0.00329942]
[1761746628723,2.9419971,112770.0,112760.0,0.00329942]
[1761746628934,2.76464497,112770.0,112760.0,0.18066728]
[1761746629153,2.37848497,112770.0,112760.0,0.18066728]
[1761746629372,2.30920497,112770.0,112760.0,0.18066728]
[1761746629591,2.28574984,112770.0,112760.0,0.18066728]
[1761746630030,0.28574984,112770.0,112760.0,0.18066728]
[1761746633095,0.28574984,112770.0,112760.0,0.27048629]
[1761746633316,0.26699,112770.0,112760.0,0.35344843]
[1761746633964,0.26699,112770.0,112760.0,0.30666857]
[1761746634603,0.26599,112770.0,112760.0,0.30466857]
[1761746635050,0.26699,112770.0,112760.0,0.31666857]
[1761746636908,0.26699,112770.0,112760.0,0.28048629]
[1761746637098,0.26699,112770.0,112760.0,0.31666857]
[1761746638476,0.26699,112770.0,112760.0,0.28048629]
[1761746638710,0.26699,112770.0,112760.0,0.19066728]
[1761746638711,0.47445213,112770.0,112760.0,0.19066728]
[1761746638919,0.51362213,112770.0,112760.0,0.01329942]
[1761746639566,1.27236995,112770.0,112760.0,0.01329942]
[1761746639785,3.27236995,112770.0,112760.0,0.01329942]
[1761746640212,3.07594754,112770.0,112760.0,0.01329942]
[1761746640644,2.36335972,112770.0,112760.0,0.01329942]
[1761746640855,3.07594754,112770.0,112760.0,0.01329942]
[1761746641300,3.50576655,112770.0,112760.0,0.01329942]
[1761746641512,3.52355967,112770.0,112760.0,0.00129942]
[1761746641739,3.52455967,112770.0,112760.0,0.00929942]
[1761746641954,2.81197185,112770.0,112760.0,0.00829942]
[1761746642171,2.67599284,112770.0,112760.0,0.00829942]
[1761746642605,2.72215284,112770.0,112760.0,0.00829942]
[1761746642819,2.33599284,112770.0,112760.0,0.18566728]
[1761746643007,2.13984759,112770.0,112760.0,0.17766728]
[1761746643260,2.31619972,112770.0,112760.0,0.17766728]
[1761746643510,3.09374023,112770.0,112760.0,0.00329942]
[1761746644219,0.17739727,112750.0,112730.0,0.0038]
[1761746644438,2.95926714,112740.0,112730.0,0.0038]
[1761746644657,3.02883473,112740.0,112730.0,0.0038]
[1761746644876,3.07499473,112740.0,112730.0,0.0038]
[1761746645113,3.07499473,112740.0,112730.0,0.00443998]
[1761746645599,2.31624691,112740.0,112730.0,0.00443998]
[1761746645831,3.02883473,112740.0,112730.0,0.00443998]
[1761746646058,2.31624691,112740.0,112730.0,0.00443998]
[1761746646309,3.02883473,112740.0,112730.0,0.18185504]
[1761746646521,3.07499473,112740.0,112730.0,0.00943998]
[1761746646737,3.07499473,112740.0,112730.0,0.00443998]
[1761746647204,3.07499473,112740.0,112730.0,0.18485504]
[1761746647413,2.24696691,112740.0,112730.0,0.18485504]
[1761746647864,2.06956759,112740.0,112730.0,0.18485504]
[1761746648766,2.10135759,112740.0,112730.0,0.18485504]
[1761746648984,0.06956759,112740.0,112730.0,0.2238776]
[1761746649201,0.06956759,112740.0,112730.0,0.18485504]
[1761746649642,0.10135759,112740.0,112730.0,0.18485504]
[1761746650064,0.06956759,112740.0,112730.0,0.18485504]
[1761746651761,2.60268759,112740.0,112730.0,0.18485504]
[1761746651964,2.10268759,112740.0,112730.0,0.18485504]
[1761746653141,3.04159473,112740.0,112730.0,0.00743998]
[1761746653587,3.04159473,112740.0,112730.0,0.18485504]
[1761746653813,3.04159473,112740.0,112730.0,0.00743998]
[1761746654034,2.81527541,112740.0,112730.0,0.18485504]
[1761746654281,2.10268759,112740.0,112730.0,0.18485504]
[1761746654497,2.10268759,112740.0,112730.0,0.18185504]
[1761746654734,2.06956759,112740.0,112730.0,0.18185504]
[1761746655200,2.10268759,112740.0,112730.0,0.18185504]
[1761746655639,2.06956759,112740.0,112730.0,0.18185504]
[1761746655854,2.06956759,112740.0,112730.0,0.2177836]
[1761746656061,2.06956759,112740.0,112730.0,0.18385504]
[1761746656318,1.8641658,112740.0,112730.0,0.18185504]
[1761746656533,0.74859243,112750.0,112740.0,0.17739932]
[1761746656534,2.74859243,112750.0,112740.0,0.17739932]
[1761746656787,2.78171243,112750.0,112740.0,0.17739932]
[1761746656991,3.04780243,112750.0,112740.0,0.21317782]
[1761746657210,2.33521461,112750.0,112740.0,0.21317782]
[1761746657642,2.38413461,112750.0,112740.0,0.17739932]
[1761746657856,3.04780243,112750.0,112740.0,0.17939932]
[1761746658287,3.01194243,112750.0,112740.0,0.17939932]
[1761746658524,3.27410602,112750.0,112740.0,0.17939932]
[1761746658952,3.04780243,112750.0,112740.0,0.17939932]
[1761746659162,2.29935461,112750.0,112740.0,0.17739932]
[1761746659586,2.26723461,112750.0,112740.0,0.18339932]
[1761746659801,0.26623461,112750.0,112740.0,0.17739932]
[1761746660009,0.26623461,112750.0,112740.0,0.30307977]
[1761746660222,0.29935461,112750.0,112740.0,0.30807977]
[1761746660433,0.26623461,112750.0,112740.0,0.27221833]
[1761746660654,0.26623461,112750.0,112740.0,0.26721833]
[1761746660862,0.26723461,112750.0,112740.0,0.27321833]
[1761746661711,0.26723461,112750.0,112740.0,0.30940061]
[1761746661937,0.26723461,112750.0,112740.0,0.39921962]
[1761746662147,0.26723461,112750.0,112740.0,0.39964623]
[1761746662332,0.26623461,112750.0,112740.0,0.39464623]
[1761746662585,0.26623461,112750.0,112740.0,0.40064623]
[1761746662793,0.26623461,112750.0,112740.0,0.39464623]
[1761746663013,0.26623461,112750.0,112740.0,0.39364623]
[1761746663228,0.26723461,112750.0,112740.0,0.40264623]
[1761746664548,0.26723461,112750.0,112740.0,0.40364623]
[1761746665595,0.26723461,112750.0,112740.0,1.46623404]
[1761746666239,0.26723461,112750.0,112740.0,0.75364622]
[1761746666458,0.26723461,112750.0,112740.0,1.46623404]
[1761746666668,2.71258782,112790.0,112780.0,0.1773364]
[1761746666876,3.05273337,112790.0,112780.0,0.1972664]
[1761746667082,3.35184337,112790.0,112780.0,0.1972664]
[1761746667496,2.60613555,112790.0,112780.0,0.1972664]
[1761746667719,2.26613555,112790.0,112780.0,0.1972664]
[1761746667927,2.29925555,112790.0,112780.0,0.1972664]
[1761746668337,2.26613555,112790.0,112780.0,0.1972664]
[1761746668772,0.26613555,112790.0,112780.0,0.1972664]
[1761746669015,0.26613555,112790.0,112780.0,0.23872825]
[1761746669225,0.26613555,112790.0,112780.0,0.36472954]
[1761746669834,0.26613555,112790.0,112780.0,0.36072954]
[1761746670036,0.26613555,112790.0,112780.0,0.36972954]
[1761746670280,0.26713555,112790.0,112780.0,0.36972954]
[1761746670488,0.26613555,112790.0,112780.0,0.36072954]
[1761746671160,0.26613555,112790.0,112780.0,0.36172954]
[1761746671621,0.00122567,112800.0,112790.0,0.17732068]
[1761746671842,0.00122567,112800.0,112790.0,0.35712699]
[1761746672052,0.26719567,112800.0,112790.0,0.35712699]
[1761746673308,0.26719567,112800.0,112790.0,0.36212699]
[1761746673523,0.74844782,112830.0,112790.0,0.36212699]
[1761746673524,2.04892,112840.0,112830.0,0.17725782]
[1761746673731,2.38906552,112840.0,112830.0,0.17725782]
[1761746673948,2.68805552,112840.0,112830.0,0.17725782]
[1761746674603,2.69845289,112840.0,112830.0,0.17725782]
[1761746674811,3.2739841,112840.0,112830.0,0.17725782]
[1761746675658,3.2749841,112840.0,112830.0,0.19857949]
[1761746676087,2.69945289,112840.0,112830.0,0.17725782]
[1761746676744,3.2749841,112840.0,112830.0,0.17725782]
[1761746676974,3.45222621,112840.0,112830.0,0.17725782]
[1761746677188,3.45222621,112840.0,112820.0,0.20225353]
[1761746677189,2.0,112820.0,112810.0,0.1861537]
[1761746677392,2.87380121,112820.0,112810.0,0.1861537]
[1761746678470,2.87380121,112820.0,112810.0,0.22419952]
[1761746678471,0.84140121,112820.0,112810.0,0.22419952]
[1761746678692,0.84140121,112820.0,112810.0,0.1861537]
[1761746679382,0.26587,112820.0,112810.0,0.1901537]
[1761746680014,0.26587,112820.0,112810.0,0.1911537]
[1761746680664,0.84140121,112820.0,112810.0,0.1911537]
[1761746680874,0.87380121,112820.0,112810.0,0.22969952]
[1761746681085,0.87380121,112820.0,112810.0,0.1911537]
[1761746681935,2.87380121,112820.0,112810.0,0.005]
[1761746682156,2.92200121,112820.0,112810.0,0.005]
[1761746682365,2.87380121,112820.0,112810.0,0.18228924]
[1761746683468,3.43927474,112820.0,112810.0,0.005]
[1761746684524,3.43970094,112820.0,112810.0,0.005]
[1761746684771,3.43970094,112820.0,112810.0,0.001]
[1761746684990,3.43970094,112820.0,112800.0,0.18545446]
[1761746684991,2.34,112810.0,112800.0,0.18545446]
[1761746685208,3.25117121,112810.0,112800.0,0.18545446]
[1761746685425,3.18161433,112810.0,112800.0,0.18545446]
[1761746685648,2.60608312,112810.0,112800.0,0.18545446]
[1761746685864,3.21401433,112810.0,112800.0,0.18545446]
[1761746686073,2.63848312,112810.0,112800.0,0.18545446]
[1761746686291,3.21401433,112810.0,112800.0,0.18645446]
[1761746687112,3.21401433,112810.0,112800.0,0.23270048]
[1761746687113,2.26608312,112810.0,112800.0,0.23270048]
[1761746687375,0.26608312,112810.0,112800.0,0.32251949]
[1761746688024,0.26608312,112810.0,112800.0,0.93423298]
[1761746688485,0.26608312,112810.0,112800.0,0.35870177]
[1761746689121,0.26608312,112810.0,112800.0,0.93323298]
[1761746689328,0.26608312,112810.0,112800.0,0.94023298]
[1761746689805,0.26608312,112810.0,112800.0,0.36470177]
[1761746690220,0.26608312,112810.0,112800.0,0.31845575]
[1761746691086,0.26608312,112810.0,112800.0,0.28227347]
[1761746691757,0.26608312,112810.0,112800.0,0.18645446]
[1761746691989,1.21401433,112810.0,112800.0,0.18945446]
[1761746692443,1.23280881,112810.0,112800.0,0.19045446]
[1761746692651,1.28100881,112810.0,112800.0,0.19045446]
[1761746692851,1.45829805,112810.0,112800.0,0.18545446]
[1761746693059,1.28100881,112810.0,112800.0,0.18545446]
[1761746693268,0.6572776,112810.0,112800.0,0.18645446]
[1761746693483,0.6248776,112810.0,112800.0,0.18645446]
[1761746694184,0.2848776,112810.0,112800.0,0.18645446]
[1761746694403,0.28489474,112810.0,112800.0,0.18645446]
[1761746695316,0.34489474,112810.0,112800.0,0.18645446]
[1761746697253,0.37729474,112810.0,112800.0,0.18645446]
[1761746697468,0.95282595,112810.0,112800.0,0.18645446]
[1761746698349,0.96100808,112810.0,112800.0,0.18645446]
[1761746699002,0.35307687,112810.0,112800.0,0.18645446]
[1761746700165,0.38547687,112810.0,112800.0,0.18645446]
[1761746700397,0.38547687,112810.0,112800.0,0.001]
[1761746700398,3.34116278,112810.0,112800.0,0.001]
[1761746700632,3.36464272,112810.0,112800.0,0.001]
[1761746701298,3.47082521,112810.0,112800.0,0.001]
[1761746701774,0.51731735,112800.0,112780.0,0.17733617]
[1761746701985,2.64530121,112790.0,112780.0,0.17733617]
[1761746702207,2.08858162,112790.0,112780.0,0.17733617]
[1761746702476,2.74464829,112790.0,112780.0,0.17733617]
[1761746702907,2.97016897,112790.0,112780.0,0.17733617]
[1761746703363,2.79284829,112790.0,112780.0,0.17733617]
[1761746703589,2.97016897,112790.0,112780.0,0.17733617]
[1761746704038,2.79284829,112790.0,112780.0,0.17733617]
[1761746704264,2.74464829,112790.0,112780.0,0.17733617]
[1761746704921,2.97016897,112790.0,112780.0,0.17733617]
[1761746705165,2.79284829,112790.0,112780.0,0.17733617]
[1761746705377,2.79284829,112790.0,112780.0,0.17833617]
[1761746705605,2.74464829,112790.0,112780.0,0.17933617]
[1761746707611,2.79095829,112790.0,112780.0,0.17933617]
[1761746707814,2.96827897,112790.0,112780.0,0.17933617]
[1761746708532,2.79095829,112790.0,112780.0,0.17933617]
[1761746709045,2.79095829,112790.0,112780.0,0.17833617]
[1761746709296,2.74464829,112790.0,112780.0,0.17733617]
[1761746709833,2.96827897,112790.0,112780.0,0.1773364]
[1761746710337,2.74464829,112790.0,112780.0,0.1773364]
[1761746710552,2.74464829,112790.0,112780.0,0.19318433]
[1761746710553,0.08053546,112790.0,112780.0,0.19318433]
[1761746711184,0.08053546,112790.0,112780.0,0.28300334]
[1761746711610,0.08053546,112790.0,112780.0,0.89471683]
[1761746711828,0.08053546,112790.0,112780.0,0.31918562]
[1761746712267,0.08053546,112790.0,112780.0,0.26715541]
[1761746712497,0.69004667,112790.0,112780.0,0.26715541]
[1761746713210,0.68804667,112790.0,112780.0,0.26715541]
[1761746713463,0.11251546,112790.0,112780.0,0.26715541]
[1761746713691,0.08053546,112790.0,112780.0,0.26715541]
[1761746713909,0.08053546,112790.0,112780.0,0.31249292]
[1761746714123,0.08053546,112790.0,112780.0,0.3496752]
[1761746714549,0.08053546,112790.0,112780.0,0.3546752]
[1761746714766,0.08053546,112790.0,112780.0,0.3496752]
[1761746714977,0.08053546,112790.0,112780.0,0.30433769]
[1761746715184,0.08053546,112790.0,112780.0,0.30733769]
[1761746715402,0.08053546,112790.0,112780.0,0.27115541]
[1761746715624,0.08053546,112790.0,112780.0,0.30733769]
[1761746715834,0.11251546,112790.0,112780.0,0.27115541]
[1761746716258,0.11251546,112790.0,112780.0,0.27015541]
[1761746716482,0.08053546,112790.0,112780.0,0.27115541]
[1761746716928,0.11251546,112790.0,112780.0,0.27115541]
[1761746717135,0.11251546,112790.0,112780.0,0.27015541]
[1761746717348,0.77340667,112790.0,112780.0,0.1813364]
[1761746717554,0.95072735,112790.0,112780.0,0.1813364]
[1761746718413,2.95072735,112790.0,112780.0,0.1783364]
[1761746718861,2.95072735,112790.0,112780.0,0.001]
[1761746719299,2.95072735,112790.0,112780.0,0.1783364]
[1761746719731,2.72577667,112790.0,112780.0,0.21479201]
[1761746719945,2.11251546,112790.0,112780.0,0.21379201]
[1761746720152,2.32756614,112790.0,112780.0,0.21379201]
[1761746720401,2.32756614,112790.0,112780.0,0.1773364]
[1761746721264,2.95072735,112790.0,112780.0,0.1783364]
[1761746721549,2.95072735,112790.0,112780.0,0.001]
[1761746721964,2.95072735,112790.0,112780.0,0.1803364]
[1761746722784,2.95072735,112790.0,112780.0,0.1783364]
[1761746722989,2.95072735,112790.0,112780.0,0.1773364]
[1761746723197,2.0,112780.0,112770.0,0.17735201]
[1761746723414,0.68804667,112780.0,112770.0,0.17749756]
[1761746723613,0.11251546,112780.0,112770.0,0.17749756]
[1761746724229,0.08053546,112780.0,112770.0,0.17749756]
[1761746724648,0.08053546,112780.0,112770.0,0.21735967]
[1761746724856,0.11251546,112780.0,112770.0,0.18049756]
[1761746725719,0.08053546,112780.0,112770.0,0.18049756]
[1761746725926,0.11251546,112780.0,112770.0,0.18049756]
[1761746727098,0.73567667,112780.0,112770.0,0.18049756]
[1761746727307,3.25301307,112780.0,112770.0,0.00314555]
[1761746727517,3.27185803,112780.0,112770.0,0.00314555]
[1761746728286,3.27185803,112780.0,112770.0,0.00114555]
[1761746728553,3.27385803,112780.0,112770.0,0.00114555]
[1761746729947,3.27385803,112780.0,112770.0,0.00014555]
[1761746731112,2.47336042,112780.0,112770.0,0.17749768]
[1761746731337,2.69832682,112780.0,112770.0,0.17749768]
[1761746731562,3.09652163,112780.0,112770.0,0.17749768]
[1761746731783,3.04889163,112780.0,112770.0,0.17749768]
[1761746732454,3.27185803,112780.0,112770.0,0.17749768]
[1761746732660,3.27185803,112780.0,112770.0,0.00214555]
[1761746732867,3.27185803,112780.0,112770.0,0.17949768]
[1761746733309,2.69632682,112780.0,112770.0,0.17949768]
[1761746733553,2.51899042,112780.0,112770.0,0.18049768]
[1761746733788,3.04689163,112780.0,112770.0,0.20393762]
[1761746734020,3.04689163,112780.0,112770.0,0.18049768]
[1761746734248,3.04689163,112780.0,112770.0,0.17949768]
[1761746734511,2.47136042,112780.0,112770.0,0.17949768]
[1761746734745,2.43938042,112780.0,112770.0,0.17749768]
[1761746734971,0.42253546,112780.0,112770.0,0.17749768]
[1761746735176,0.45451546,112780.0,112770.0,0.17749768]
[1761746735380,2.67748186,112780.0,112770.0,0.17749768]
[1761746735588,3.39037654,112780.0,112770.0,0.17749768]
[1761746735799,2.69631354,112780.0,112770.0,0.00014555]
[1761746736006,3.40920822,112780.0,112770.0,0.17749768]
[1761746736207,2.69631354,112780.0,112770.0,0.17749768]
[1761746736416,2.45251546,112780.0,112770.0,0.17749768]
[1761746736588,2.62985186,112780.0,112770.0,0.17749768]
[1761746736832,2.45251546,112780.0,112770.0,0.17749768]
[1761746737982,2.45251546,112780.0,112770.0,0.17949768]
[1761746738208,2.62985186,112780.0,112770.0,0.17749768]
[1761746738428,2.67885186,112780.0,112770.0,0.17749768]
[1761746739147,2.45251546,112780.0,112770.0,0.2122662]
[1761746739362,2.45251546,112780.0,112770.0,0.17749768]
[1761746739363,0.08053546,112780.0,112770.0,0.17749768]
[1761746741006,0.08053546,112780.0,112770.0,0.17849768]
[1761746741432,0.08053546,112780.0,112770.0,0.17949768]
[1761746741676,0.08053546,112780.0,112770.0,0.17849768]
[1761746741919,2.61140546,112780.0,112770.0,0.17849768]
[1761746742133,2.16040546,112780.0,112770.0,0.18149768]
[1761746742358,3.39063654,112780.0,112770.0,0.00414555]
[1761746742586,3.40947362,112780.0,112770.0,0.00414555]
[1761746742818,3.40947362,112780.0,112770.0,0.00114555]
[1761746742819,3.49929263,112780.0,112770.0,0.00114555]
[1761746744614,3.49929263,112780.0,112770.0,0.00014555]
[1761746745080,3.55316434,112780.0,112770.0,0.00014555]
[1761746745320,3.52583631,112780.0,112770.0,0.00014555]
[1761746746484,3.53401311,112780.0,112770.0,0.00014555]
[1761746746710,3.55036653,112780.0,112770.0,0.00014555]
[1761746748087,2.81294163,112780.0,112770.0,0.00014555]
[1761746748315,3.52583631,112780.0,112770.0,0.00014555]
[1761746750727,3.52283631,112780.0,112770.0,0.00014555]
[1761746751171,3.52483631,112780.0,112770.0,0.00014555]
[1761746752020,3.41147362,112780.0,112770.0,0.00014555]
[1761746753397,3.23413722,112780.0,112770.0,0.17749768]
[1761746753575,2.64957894,112780.0,112770.0,0.17749768]
[1761746753847,2.64757894,112780.0,112770.0,0.17749768]
[1761746754087,2.47024254,112780.0,112770.0,0.17749768]
[1761746754549,2.42053546,112780.0,112770.0,0.17749768]
[1761746754799,0.42053546,112780.0,112770.0,0.17749768]
[1761746755029,0.08053546,112780.0,112770.0,0.17749768]
[1761746755490,0.08053546,112780.0,112770.0,0.17949768]
[1761746755714,0.08053546,112780.0,112770.0,0.18049768]
[1761746756895,0.11140546,112780.0,112770.0,0.18049768]
[1761746757612,2.11140546,112780.0,112770.0,0.18049768]
[1761746758785,0.08053546,112780.0,112770.0,0.18049768]
[1761746759916,0.11140546,112780.0,112770.0,0.18049768]
[1761746760337,0.08053546,112780.0,112770.0,0.18049768]
[1761746761707,0.08053546,112780.0,112770.0,0.27031669]
[1761746763016,0.11140546,112780.0,112770.0,0.18049768]
[1761746763234,3.05063654,112780.0,112770.0,0.18049768]
[1761746763469,3.06947397,112780.0,112770.0,0.00314555]
[1761746763687,3.15929298,112780.0,112770.0,0.00314555]
[1761746763893,3.52662101,112780.0,112770.0,0.00314555]
[1761746764736,3.55016469,112780.0,112770.0,0.00314555]
[1761746764945,3.57862388,112780.0,112770.0,0.00314555]
[1761746765169,3.57862388,112780.0,112770.0,0.00114555]
[1761746765382,3.5580802,112780.0,112770.0,0.00114555]
[1761746765596,3.5580802,112780.0,112770.0,0.00014555]
[1761746765808,3.84106848,112780.0,112770.0,0.00014555]
[1761746766022,3.83647097,112780.0,112770.0,0.00014555]
[1761746766504,3.60028869,112780.0,112770.0,0.00014555]
[1761746766712,3.6286567,112780.0,112770.0,0.00014555]
[1761746767130,3.6376567,112780.0,112770.0,0.00014555]
[1761746767338,3.5818507,112780.0,112770.0,0.00014555]
[1761746767566,0.34,112740.0,112730.0,0.19008521]
[1761746767792,0.48477546,112740.0,112730.0,0.19057076]
[1761746768633,0.71193478,112740.0,112730.0,0.19057076]
[1761746768848,0.54443821,112740.0,112730.0,0.19057076]
[1761746769061,0.49467821,112740.0,112730.0,0.19057076]
[1761746769283,0.46144821,112740.0,112730.0,0.19057076]
[1761746769493,0.43043821,112740.0,112730.0,0.31806806]
[1761746769693,0.09043821,112740.0,112730.0,0.28038977]
[1761746769911,0.08053546,112740.0,112730.0,0.28038977]
[1761746770131,0.08053546,112740.0,112730.0,0.28338977]
[1761746770553,0.08053546,112740.0,112730.0,0.28438977]
[1761746770975,0.08053546,112740.0,112730.0,0.30979299]
[1761746771435,0.08053546,112740.0,112730.0,0.28438977]
[1761746772491,0.08053546,112740.0,112730.0,0.32057205]
[1761746773200,0.08053546,112740.0,112730.0,1.03346673]
[1761746773421,0.08053546,112740.0,112730.0,0.32057205]
[1761746773651,0.08053546,112740.0,112730.0,0.33057204]
[1761746773856,0.08053546,112740.0,112730.0,1.48328572]
[1761746774480,0.08053546,112740.0,112730.0,1.47928572]
[1761746774702,0.08053546,112740.0,112730.0,1.49028572]
[1761746774703,0.08153546,112740.0,112730.0,1.49028572]
[1761746774914,0.08153546,112740.0,112730.0,0.76739105]
[1761746775130,0.08153546,112740.0,112730.0,0.33757204]
[1761746775567,0.08153546,112740.0,112730.0,1.05046672]
[1761746775997,1e-08,112740.0,112730.0,1.39046672]
[1761746776432,1e-08,112740.0,112730.0,1.40046671]
[1761746776646,1e-08,112740.0,112730.0,1.42711962]
[1761746776873,1e-08,112740.0,112730.0,1.51693863]
[1761746777504,1e-08,112740.0,112730.0,1.51493863]
[1761746777740,0.50021312,112810.0,112800.0,0.17730496]
[1761746777943,0.50021312,112810.0,112800.0,0.20639496]
[1761746777944,0.00021312,112810.0,112800.0,0.20639496]
[1761746778176,0.00021312,112810.0,112800.0,0.24476652]
[1761746778389,0.00021312,112810.0,112800.0,0.29621397]
[1761746779067,0.00035864,112810.0,112800.0,0.29621397]
[1761746780737,0.00035864,112810.0,112800.0,0.30021397]
[1761746781161,0.00035864,112810.0,112800.0,0.33639625]
[1761746781377,0.00035864,112810.0,112800.0,0.38776794]
[1761746782677,0.00035864,112810.0,112800.0,1.45066261]
[1761746782899,1e-08,112810.0,112800.0,0.73776793]
[1761746783136,1e-08,112810.0,112800.0,0.74776792]
[1761746784202,1e-08,112810.0,112800.0,0.39776793]
[1761746784902,1e-08,112810.0,112800.0,1.45066261]
[1761746785116,1e-08,112810.0,112800.0,1.4606626]
[1761746785573,1e-08,112810.0,112800.0,1.48730091]
[1761746786641,1e-08,112810.0,112800.0,1.48330091]
[1761746787108,1e-08,112810.0,112800.0,1.48830091]
[1761746787644,1e-08,112810.0,112800.0,1.4616626]
[1761746788454,0.74626468,112850.0,112800.0,1.4566626]
[1761746788623,0.37351552,112850.0,112840.0,0.17724211]
[1761746788856,0.34014552,112850.0,112840.0,0.17724211]
[1761746789291,0.34099766,112850.0,112840.0,0.17724211]
[1761746789502,0.00099766,112850.0,112840.0,0.17724211]
[1761746789928,0.03343766,112850.0,112840.0,0.17724211]
[1761746790154,0.00099766,112850.0,112840.0,0.17724211]
[1761746790608,0.03943766,112850.0,112840.0,0.17724211]
[1761746790830,0.00099766,112850.0,112840.0,0.17724211]
[1761746791044,0.00599766,112850.0,112840.0,0.2126921]
[1761746791670,0.00599766,112850.0,112840.0,0.2136921]
[1761746792132,0.07180766,112850.0,112840.0,0.17824211]
[1761746792371,0.71889234,112850.0,112840.0,0.17824211]
[1761746792585,0.00599766,112850.0,112840.0,0.17824211]
[1761746793027,0.03843766,112850.0,112840.0,0.17824211]
[1761746793246,0.00599766,112850.0,112840.0,0.17824211]
[1761746793683,0.00599766,112850.0,112840.0,0.2137921]
[1761746793897,0.00599766,112850.0,112840.0,0.17824211]
[1761746794536,0.27184766,112850.0,112840.0,0.17824211]
[1761746795613,0.30428766,112850.0,112840.0,0.17824211]
[1761746796046,0.27184766,112850.0,112840.0,0.17824211]
[1761746796964,0.27184766,112850.0,112840.0,0.20314395]
[1761746798486,0.30431766,112850.0,112840.0,0.20314395]
[1761746798710,0.27184766,112850.0,112840.0,0.20314395]
[1761746798974,0.27184766,112850.0,112840.0,0.29296296]
[1761746799885,0.27184766,112850.0,112840.0,0.26806112]
[1761746804256,0.30431766,112850.0,112840.0,0.26806112]
[1761746804466,0.27999766,112850.0,112840.0,0.26806112]
[1761746806382,0.29881543,112850.0,112840.0,0.26806112]
[1761746807419,0.29881543,112850.0,112840.0,0.21806112]
[1761746807622,2.29881543,112850.0,112840.0,0.21806112]
[1761746808263,2.29881543,112850.0,112840.0,0.23884223]
[1761746809145,2.99028749,112850.0,112840.0,0.12824211]
[1761746809363,3.01375474,112850.0,112840.0,0.12824211]
[1761746810020,2.43856268,112850.0,112840.0,0.12824211]
[1761746810225,2.0,112840.0,112830.0,0.17725782]
[1761746810443,2.90047983,112840.0,112830.0,0.26707683]
[1761746810658,2.90047983,112840.0,112830.0,0.17725782]
[1761746810659,1.49100919,112840.0,112830.0,0.17725782]
[1761746811106,1.55100919,112840.0,112830.0,0.17725782]
[1761746811326,0.17725782,112830.0,112820.0,0.18611013]
[1761746811551,3.15113168,112830.0,112820.0,0.17727353]
[1761746811973,0.17727353,112820.0,112810.0,0.17724381]
[1761746812157,3.17363789,112830.0,112820.0,0.17727353]
[1761746812425,3.53898449,112830.0,112820.0,0.17727353]
[1761746812633,2.34,112820.0,112810.0,0.17724381]
[1761746812849,1.3139917,112820.0,112810.0,0.17724381]
[1761746813277,1.2641717,112820.0,112810.0,0.17724381]
[1761746813492,0.29294112,112820.0,112810.0,0.30631322]
[1761746813721,0.29294112,112820.0,112810.0,0.26706282]
[1761746814769,0.2659,112820.0,112810.0,0.26706282]
[1761746814980,0.2659,112820.0,112810.0,0.26806282]
[1761746815666,0.29292205,112820.0,112810.0,0.26806282]
[1761746816326,0.32539205,112820.0,112810.0,0.26806282]
[1761746816977,0.32539205,112820.0,112810.0,0.26706282]
[1761746817198,0.29292205,112820.0,112810.0,0.26706282]
[1761746817435,0.29392205,112820.0,112810.0,0.26706282]
[1761746817619,0.29392205,112820.0,112810.0,0.001]
[1761746817620,3.49224616,112820.0,112810.0,0.001]
[1761746817877,3.53131486,112820.0,112810.0,0.001]
[1761746818084,2.67728924,112810.0,112800.0,0.17730425]
[1761746818294,3.18522557,112810.0,112800.0,0.17730425]
[1761746818753,2.34893427,112810.0,112800.0,0.21643135]
[1761746818963,0.29292205,112810.0,112800.0,0.17730425]
[1761746819198,0.32539205,112810.0,112800.0,0.17730425]
[1761746819438,3.12769335,112810.0,112800.0,0.17730425]
[1761746819680,2.0,112800.0,112790.0,0.20510068]
[1761746819915,0.36703376,112800.0,112790.0,0.2052462]
[1761746820346,0.28474376,112800.0,112790.0,0.2052462]
[1761746820553,0.31721376,112800.0,112790.0,0.2052462]
[1761746820756,0.317182,112800.0,112790.0,0.2052462]
[1761746821600,0.284712,112800.0,112790.0,0.2052462]
[1761746822034,0.284712,112800.0,112790.0,0.29506521]
[1761746822471,0.2659,112800.0,112790.0,0.29506521]
[1761746823770,0.2659,112800.0,112790.0,0.34319048]
[1761746824014,0.2659,112800.0,112790.0,0.29506521]
[1761746824685,0.2659,112800.0,112790.0,0.90643955]
[1761746825162,0.2659,112800.0,112790.0,0.90843955]
[1761746825600,0.2659,112800.0,112790.0,0.33324749]
[1761746826057,0.2659,112800.0,112790.0,0.33424749]
[1761746826276,0.2659,112800.0,112790.0,0.38629099]
[1761746826509,0.2659,112800.0,112790.0,0.38529099]
[1761746826757,0.2659,112800.0,112790.0,0.38329099]
[1761746826984,0.2659,112800.0,112790.0,0.38829099]
[1761746827400,0.2659,112800.0,112790.0,0.38329099]
[1761746827605,0.2659,112800.0,112790.0,0.38529099]
[1761746828273,0.00791378,112820.0,112790.0,0.96934908]
[1761746828481,0.00791378,112820.0,112810.0,0.78866358]
[1761746828691,0.00791378,112820.0,112810.0,0.9683016]
[1761746828920,0.00791378,112820.0,112810.0,0.39310954]
[1761746829127,0.00791378,112820.0,112810.0,0.9683016]
[1761746830478,1e-08,112820.0,112810.0,0.97930159]
[1761746830690,1e-08,112820.0,112810.0,1.32930158]
[1761746831100,1e-08,112820.0,112810.0,1.33230158]
[1761746832578,1e-08,112820.0,112810.0,0.75710952]
[1761746832828,1e-08,112820.0,112810.0,1.33230158]
[1761746834912,0.0002,112870.0,112850.0,0.03618228]
[1761746835123,0.0002,112870.0,112860.0,0.32093306]
[1761746835398,0.03086,112870.0,112860.0,0.30321199]
[1761746835618,0.0002,112870.0,112860.0,0.30321199]
[1761746836073,0.00068537,112870.0,112860.0,0.30321199]
[1761746836792,0.00068537,112870.0,112860.0,0.26702971]
[1761746837021,2.68674743,112870.0,112860.0,0.1772107]
[1761746837245,2.86394243,112870.0,112860.0,0.1772107]
[1761746837718,2.68874743,112870.0,112860.0,0.1772107]
[1761746837936,2.0,112860.0,112850.0,0.17721231]
[1761746838184,0.03066,112860.0,112850.0,0.17721231]
[1761746838625,0.3210917,112870.0,112860.0,0.1772107]
[1761746838831,2.12656537,112870.0,112860.0,0.1772107]
[1761746839038,2.17455537,112870.0,112860.0,0.1772107]
[1761746839248,2.34875344,112870.0,112850.0,0.17721231]
[1761746839478,2.65584206,112860.0,112840.0,0.18610421]
[1761746839695,2.60585206,112850.0,112840.0,0.18610421]